Cogmind - Beta 14 @@@ ROGUE MODE // 2024.08.09 @ 18:08:03 Player: APerTAS Result: Destroyed by G-47 Trooper with Particle Gun Performance ------------- Evolutions (0) 0 Regions Visited (2) 400 Robots Destroyed (7) 35 Value Destroyed (110) 110 Prototype IDs (2) 40 Alien Tech Used (0) 0 Bonus (0) 0 TOTAL SCORE: 585 Bonus ------- None Cogmind --------- Core Integrity 0/250 Matter 300/300 Energy 99/100 System Corruption 3% Temperature Cool (9) Movement Core (50) Location -10/Mines Parts ------- > --- POWER (1) -------- (None) > --- PROPULSION (2) --- (None) > --- UTILITY (2) ------ (None) > --- WEAPON (2) ------- (None) > --- INVENTORY (5) ---- Light Ion Engine Light Treads Aluminum Leg Aluminum Leg Medium Laser Peak State ------------ > --- POWER ------------ Ion Engine > --- PROPULSION ------- Light Treads Light Treads > --- UTILITY ---------- Small Storage Unit > --- WEAPON ----------- EM Pulse Gun Assault Rifle > --- INVENTORY -------- Aluminum Leg Aluminum Leg Medium Laser [Rating: 6] Favorites ----------- Power Ion Engine Engine Ion Engine Propulsion Light Treads Treads Light Treads Utility Small Storage Unit Storage Small Storage Unit Weapon Assault Rifle Energy Gun EM Pulse Gun Ballistic Gun Assault Rifle Build | -11 -10 -10 ------- Run | Yrd Mat Min Slots Evolved . | . . . Power . | . . . Propulsion . | . . . Utility . | . . . Weapon . | . . . Parts Attached 6 | 6 . . Power 1 | 1 . . Engine 1 | 1 . . Core . | . . . Reactor . | . . . Propulsion 2 | 2 . . Treads 2 | 2 . . Leg . | . . . Wheel . | . . . Hover . | . . . Flight . | . . . Utility 1 | 1 . . Device . | . . . Storage 1 | 1 . . Processor . | . . . Hackware . | . . . Protection . | . . . Artifact . | . . . Weapon 2 | 2 . . Energy Gun 1 | 1 . . Energy Cannon . | . . . Ballistic Gun 1 | 1 . . Ballistic Cannon . | . . . Launcher . | . . . Special Weapon . | . . . Impact Weapon . | . . . Slashing Weapon . | . . . Piercing Weapon . | . . . Special Melee Weapon . | . . . Unidentified Prototypes . | . . . Parts Lost 3 | . 3 . Power 1 | . 1 . Propulsion . | . . . Utility . | . . . Weapon 2 | . 2 . Highest Loss Streak 3 | . 3 . To Critical Strikes . | . . . Average Slot Usage (%) 75 | . 82 . Engine 12 | . 14 . Treads 25 | . 28 . Storage 12 | . 14 . Energy Gun 10 | . 12 . Ballistic Gun 12 | . 13 . Peak Build Rating 6 | 6 6 . Average Rating 3 | 1 5 . On Entrance 2 | . 6 . Naked Turns 15 | . . 15 Heaviest Build 14 | 14 14 . Greatest Support 40 | 40 40 3 Greatest Overweight (x) . | . . . Average Overweight (x) . | . . . Largest Inventory Capacity 8 | 8 8 5 Average Capacity 6 | 5 8 5 Most Carried 5 | 4 5 5 Average Carried 2 | . 4 5 Final Capacity 8 | 8 5 5 Final Carried 5 | 4 5 5 Class Distribution -------------------- 100% | Mutant Dominant Class ---------------- Mutant | -10/Materials Mutant | -10/Mines Resources | -11 -10 -10 ----------- Run | Yrd Mat Min Matter Collected 302 | 214 88 . Remotely . | . . . Salvage Created 153 | . 153 . Parts 14 | . 14 . Haulers Intercepted . | . . . Recyclers Shooed . | . . . Parts Field Recycled . | . . . Retrieved Matter . | . . . Parts Self-Destructed . | . . . Prevented . | . . . Kills | -11 -10 -10 ------- Run | Yrd Mat Min Combat Hostiles Destroyed 5 | . 5 . Guns 2 | . 2 . AOE 3 | . 3 . Classes Destroyed 3 | . 3 . Worker 2 | . 2 . Swarmer 3 | . 3 . Grunt 2 | . 2 . Best Kill Streak 6 | . 6 . Combat Bots Only 5 | . 5 . Max Kills in Single Turn 3 | . 3 . Gunslinging . | . . . Exploded 3 | . 3 . Melee . | . . . Uniques/NPCs Destroyed . | . . . Combat | -11 -10 -10 -------- Run | Yrd Mat Min Hostile Shots Fired 81 | . 66 15 Missed 16 | . 14 2 Damage Taken 751 | . 566 185 Core 260 | . 75 185 Absorbed by Shields . | . . . Core Remaining (%) 100 | 100 . . Volleys Fired 14 | . 14 . Largest 2 | . 2 . Hottest 60 | . 60 . Shots Fired 28 | . 28 . Gun 28 | . 28 . Cannon . | . . . Launcher . | . . . Special . | . . . Kinetic 14 | . 14 . Thermal . | . . . Explosive . | . . . Electromagnetic 14 | . 14 . Robot Hit Streak 4 | . 4 . Robot Miss Streak 3 | . 3 . Penetration Max . | . . . Secondary Targets . | . . . Shots Hit Robots 14 | . 14 . Core Hits 9 | . 8 1 Critical Kills . | . . . Critical Parts Destroyed . | . . . Critical Strikes . | . . . Melee Attacks . | . . . Impact . | . . . Slashing . | . . . Piercing . | . . . Sneak Attacks . | . . . Combat Hostiles . | . . . Follow-up Attacks . | . . . Damage Inflicted 421 | . 387 34 Guns 196 | . 196 . Cannons . | . . . Explosions 167 | . 167 . Melee . | . . . Ramming 58 | . 24 34 Kinetic 73 | . 73 . Thermal 167 | . 167 . Explosive . | . . . Electromagnetic 123 | . 123 . Impact . | . . . Slashing . | . . . Piercing . | . . . Highest Corruption 3 | . . 3 Average Corruption 1 | . . 1 Corruption Purged . | . . . Corruption Blocked . | . . . Overload Shots . | . . . Overflow Damage 20 | . 20 . Projectiles . | . . . Explosions 20 | . 20 . Melee . | . . . Knockbacks 1 | . 1 . Impact 1 | . 1 . Kinetic . | . . . Secondary . | . . . Self-Inflicted Damage 18 | . 3 15 Shots . | . . . Rammed 19 | . 9 10 Targets Rammed 20 | . 10 10 Kicked . | . . . Crushed 1 | . 1 . Highest Temperature 30 | . 30 . Average Temperature 17 | . 17 . Received Heat Transfer 372 | . 276 96 Siege Activations . | . . . Robots Corrupted . | . . . Combat Hostiles . | . . . Parts Fried . | . . . Impact Corruptions . | . . . Robots Melted . | . . . Combat Hostiles . | . . . Parts Melted . | . . . Heat Transferred 200 | . 200 . Parts Sabotaged . | . . . Parts Stolen . | . . . Parts Stripped . | . . . Power Chain Reactions 1 | . 1 . Alert | -11 -10 -10 ------- Run | Yrd Mat Min Peak Influence 173 | . 173 74 Initial 59 | . . 59 Average 39 | . 91 73 Maximum Alert Level . | . . . Low Security (%) 100 | 100 100 100 Level 1 . | . . . Level 2 . | . . . Level 3 . | . . . Level 4 . | . . . Level 5 . | . . . High Security . | . . . Max Security . | . . . Squads Dispatched 2 | . 2 . Investigation 1 | . 1 . Extermination . | . . . Reinforcement 1 | . 1 . Assault . | . . . Garrison . | . . . Intercept . | . . . Searches Triggered . | . . . Construction Impeded . | . . . Haulers Reinforced . | . . . Active Scanning Responses . | . . . Cargo Convoy Interrupts . | . . . Stealth | -11 -10 -10 --------- Run | Yrd Mat Min Distress Signals . | . . . Communications Jammed . | . . . Distress Signals . | . . . Times Spotted 14 | . 12 2 Peak Tracking Total 4 | . 4 2 Tactical Retreats 1 | . 1 . Traps | -11 -10 -10 ------- Run | Yrd Mat Min Traps Triggered . | . . . Indirectly . | . . . Trap Hack Attempts . | . . . Triggered . | . . . Disarmed . | . . . Reprogrammed . | . . . Reused . | . . . Traps Extracted . | . . . Installed . | . . . Triggered . | . . . Machines | -11 -10 -10 ---------- Run | Yrd Mat Min Machines Disabled 1 | . 1 . Max in Single Turn 1 | . 1 . Machines Repaired . | . . . Machines Dismantled . | . . . Machines Sabotaged . | . . . Overloaded Fab Kills . | . . . Hacking | -11 -10 -10 --------- Run | Yrd Mat Min Machines Accessed 1 | . 1 . Terminals 1 | . 1 . Fabricators . | . . . Repair Stations . | . . . Recycling Units . | . . . Scanalyzers . | . . . Garrison Access . | . . . Total Hacks 4 | . 4 . Successful 2 | . 2 . Failed 2 | . 2 . Catastrophic . | . . . Database Lockouts . | . . . Manual 3 | . 3 . Terminals 4 | . 4 . Fabricators . | . . . Repair Stations . | . . . Recycling Units . | . . . Scanalyzers . | . . . Garrison Access . | . . . Terminal Hacks 1 | . 1 . Prototype ID Bank 1 | . 1 . Fabricator Hacks . | . . . Repair Station Hacks . | . . . Recycling Unit Hacks . | . . . Scanalyzer . | . . . Garrison Access Hacks . | . . . Unauthorized Hacks 1 | . 1 . Terminals 1 | . 1 . Botnet 1 | . 1 . Fabricators . | . . . Repair Stations . | . . . Recycling Units . | . . . Scanalyzers . | . . . Garrison Access . | . . . Data Cores Recovered . | . . . Used . | . . . Hacking Detections 1 | . 1 . Full Trace Events 1 | . 1 . Feedback Events . | . . . Feedback Blocked . | . . . Robot Schematics Acquired . | . . . Robots Built . | . . . Authchips . | . . . Time . | . . . Total Robot Build Rating . | . . . Part Schematics Acquired . | . . . Parts Built . | . . . Authchips . | . . . Time . | . . . Total Part Build Rating . | . . . Parts Repaired . | . . . Time . | . . . Parts Recycled . | . . . Recycled Matter . | . . . Retrieved Matter . | . . . Retrieved Components . | . . . Parts Scanalyzed . | . . . Part Schematics Acquired . | . . . Parts Damaged . | . . . Bothacking | -11 -10 -10 ------------ Run | Yrd Mat Min Used RIF Installer . | . . . Robots Hacked . | . . . Non-combat . | . . . Combat . | . . . Robot Hacks Applied . | . . . Relay Couplers Released . | . . . Fabnet Peak Effective % . | . . . Robots Rewired . | . . . Allies Hacked . | . . . Hacks Repelled . | . . . Allies | -11 -10 -10 -------- Run | Yrd Mat Min Total Allies . | . . . Largest Group . | . . . Highest-Rated Group . | . . . Highest-Rated Ally . | . . . Total Orders . | . . . Ally Attacks . | . . . Total Damage . | . . . Kills . | . . . Allies Corrupted . | . . . Allies Melted . | . . . Intel | -11 -10 -10 ------- Run | Yrd Mat Min Robot Analysis Total . | . . . Derelict Logs Recovered . | . . . Drone Launches . | . . . Drone Recoveries . | . . . Exploration | -11 -10 -10 ------------- Run | Yrd Mat Min Turns Passed 522 | 291 216 15 Spaces Moved 188 | 82 97 9 Core 40 | 31 . 9 Treads 148 | 51 97 . Legs . | . . . Wheels . | . . . Hover . | . . . Flight . | . . . Fastest Speed 50 | 50 160 50 Average Speed 136 | 118 160 50 Slowest Speed 160 | 160 160 50 Overloaded Moves . | . . . Propulsion Burnouts . | . . . Robots Hopped . | . . . Cave-ins Triggered . | . . . Exploration Rate (%) 10 | 8 18 6 Regions Visited 2 Branch Regions 1 Pre-discovered Areas . | . . . Known Exits Taken . | . . . Unknown Exits Taken 2 | 1 1 . Scrap Searched . | . . . Spaces Dug . | . . . Terrain Destroyed 3 | . 3 . Melee . | . . . Projectile . | . . . AOE 3 | . 3 . Terrain Rammed . | . . . Walls Destroyed . | . . . Machines Disabled . | . . . Actions | -11 -10 -10 --------- Run | Yrd Mat Min Total 416 | 273 124 19 Wait 185 | 182 3 . Move 187 | 81 97 9 Hop . | . . . Pick Up 5 | 4 1 . Fast Attach 6 | 6 . . Attach . | . . . Detach . | . . . Swap . | . . . Drop . | . . . Fire 14 | . 14 . Melee . | . . . Ram 10 | . . 10 Kick . | . . . Crush 9 | . 9 . Escape Stasis . | . . . Rewire . | . . . Trap . | . . . Miscellaneous . | . . . Route ------- -11/Scrapyard -10/Materials -10/Mines History --------- Turn | Location | Event 185 | -11/Scrapyard | Discovered new exit (range 15) 292 | -11/Scrapyard | Entered Materials 312 | -10/Materials | Build established: Mutant 465 | -10/Materials | Discovered new exit (range 12) 508 | -10/Materials | Released all parts (3) 508 | -10/Materials | Entered Mines 513 | -10/Mines | Core integrity fell below 50% 520 | -10/Mines | Core integrity fell below 20% 523 | -10/Mines | Destroyed by G-47 Trooper with Particle Gun Last Messages --------------- 00461_ R-06 Scavenger collects Flight Unit. 00463_ Acquired 12 matter. 00464_ K-01 Serf collects debris. 00465_ EXIT=FOUND 00467_ K-01 Serf collects debris. 00473_ EM Pulse Gun destroyed. 00476_ Slammed into G-34 Mercenary. 00483_ O-16 Technician: "IFF HANDSHAKE FAILED. SECURING TERMINAL." 00484_ Slammed into G-34 Mercenary. 00493_ Assault Rifle destroyed. 00507_ Ion Engine destroyed. 00508_ Released Sml. Storage Unit. 00508_ Released Lgt. Treads. 00508_ Slammed into G-34 Mercenary. LOCATION=UNKNOWN GOAL=ESCAPE 00511_ Slammed into G-34 Mercenary. 00512_ Destabilizing: System corrupted (+1). 00513_ Slammed into G-34 Mercenary. 00522_ Destabilizing: System corrupted (+2). Map ----- +----------------------------------------------------+ | ?????????????????????????????????????????????????? | | ?????????????????????????????????????????????????? | | ?????????????????????????????????????????????????? | | ?????????????????????????????????????????????????? | | ?????????????????????????????????????????????????? | | ?????????????????????????????????????????????????? | | ?????????????????????????????????????????????????? | | ?????????????????????????????????????????????????? | | ?????????????????????????????????????????????????? | | ?????????????????????????????????????????????????? | | ?????????????????????????????????????????????????? | | ?????????????????????????????????????????????????? | | ?????????????????????????????????????????????????? | | ?????????????????????????????????????????????????? | | ?????????????????????????????????????????????????? | | ?????????????????????#???????????????????????????? | | ?????????????????????# ??????????????????????????? | | ?????????????????????# ??????????????????????????? | | ?????????????????????? ??????????????????????????? | | ?????????????????????? ?????????????????????????? | | ??????????????????????? ?????????????????????????? | | ??????????????????????? ####?????????????????????? | | ???????????????????????? #?????????????????????? | | ???????????????????????? #?????????????????????? | | ???????????????????????## $##????????????????????? | | ??????????????????????## @ #????????????????????? | | ??????????????????????#%g%% #????????????????????? | | ??????????????????????#%% #????????????????????? | | ??????????????????????##g ##????????????????????? | | ???????????????????????#% ##????????????????????? | | ???????????????????????#% #####????????????????? | | ???????????????????????#% ##???????????????? | | ???????????????????????## #???????????????? | | ?????????????? ###### #???????????????? | | ????????????????# ##???????????????? | | ?????????????????# ##????????????????? | | ?????????????????# ##### #?????????????????? | | ?????????????????# ??????## ##?????????????????? | | ??????????????????????????#####??????????????????? | | ?????????????????????????????????????????????????? | | ?????????????????????????????????????????????????? | | ?????????????????????????????????????????????????? | | ?????????????????????????????????????????????????? | | ?????????????????????????????????????????????????? | | ?????????????????????????????????????????????????? | | ?????????????????????????????????????????????????? | | ?????????????????????????????????????????????????? | | ?????????????????????????????????????????????????? | | ?????????????????????????????????????????????????? | | ?????????????????????????????????????????????????? | +----------------------------------------------------+ Best States ------------- Heat Dissipation 25 Energy Generation 10 Energy Capacity 250 Matter Stores 300 Matter Capacity 300 Sight Range 16 Terrain Scan Density 10 Evasion (%) 50 Recoil Reduction 2 Item Schematics ----------------- None Robot Schematics ------------------ None Fabricated ------------ Nothing Alien Tech Used ----------------- None Achievements -------------- None Challenges ------------ None Game ------ Seed ThermalAdvancedNanosword Manual? 0 Play Time 00:02:22 Cumulative 18.5 hours Start 2024.08.09 @ 18:05:52 End 2024.08.09 @ 18:08:03 Sessions 1 Manual Loads 0 Difficulty Rogue Special Mode None Game No. 90 Rogue 90 Adventurer 0 Explorer 0 Win Type - Total 0 Types 0/0/0/0/0/0/0/0/0 Lore% 27 Gallery% 22 Achievement% 32 Wizard Run 0 Options --------- Layout 0 ASCII 0 Keyboard 0 Movement Arrows Keybinds 0 Fullscreen 2 Font 18/Terminus Map View 76x50 Zoom Use 0% Tactical HUD 1 Map Filters NONE Filters NONE Steam 1 RUN: e49e04f5-e22f-4856-b03a-451d925d9625